lending/lending_fUSD_20241120
["ID","MTS","AMOUNT","RATE_DAILY","PERIOD"]
[342784416,1732140739540,-729.05,0.00056438,120]
[342784417,1732140739550,-500.0,0.00056438,120]
[342784418,1732140739560,-500.0,0.00056438,120]
[342784419,1732140739570,-500.0,0.00056438,120]
[342784420,1732140739581,-2435.5,0.00056438,120]
[342784421,1732140739591,-521.8,0.00056438,120]
[342784422,1732140739601,-642.48,0.00056438,120]
[342784423,1732140739611,-849.85,0.00056438,120]
[342784424,1732140739622,-627.45,0.00056438,120]
[342784425,1732140739632,-500.0,0.00056438,120]
[342784426,1732140739642,-742.62,0.00056438,120]
[342784427,1732140739652,-500.0,0.00056438,120]
[342784428,1732140739662,-500.0,0.00056438,120]
[342784429,1732140739673,-858.26,0.00056438,120]
[342784430,1732140739685,-500.0,0.00056438,120]
[342784431,1732140739695,-503.51,0.00056438,120]
[342784432,1732140739705,-500.0,0.00056438,120]
[342784433,1732140739715,-151.0,0.00056438,120]
[342784434,1732140739725,-151.0,0.00056438,120]
[342784435,1732140739735,-151.0,0.00056438,120]
[342784436,1732140739744,-151.0,0.00056438,120]
[342784437,1732140739754,-2800.08,0.00056438,120]
[342784438,1732140739764,-235.528773,0.00056438,120]
[342784439,1732140739775,-500.0,0.00056438,120]
[342784440,1732140739784,-500.0,0.00056438,120]
[342784441,1732140739794,-500.0,0.00056438,120]
[342784442,1732140739803,-563.45,0.00056438,120]
[342784443,1732140739813,-500.0,0.00056438,120]
[342784444,1732140739822,-500.0,0.00056438,120]
[342784445,1732140739832,-500.0,0.00056438,120]
[342784446,1732140739841,-1104.08,0.00056438,120]
[342784447,1732140739852,-500.0,0.00056438,120]
[342784448,1732140739862,-500.0,0.00056438,120]
[342784449,1732140739871,-1222.85,0.00056438,120]
[342784450,1732140739881,-500.0,0.00056438,120]
[342784451,1732140739891,-500.0,0.00056438,120]
[342784452,1732140739901,-151.0,0.00056438,120]
[342784453,1732140739910,-151.0,0.00056438,120]
[342784454,1732140739920,-1021.61,0.00056438,120]
[342784455,1732140739933,-151.0,0.00056438,120]
[342784456,1732140739943,-151.0,0.00056438,120]
[342784457,1732140739952,-151.0,0.00056438,120]
[342784458,1732140739962,-151.0,0.00056438,120]
[342784459,1732140739972,-578.33,0.00056438,120]
[342784460,1732140739981,-500.0,0.00056438,120]
[342784461,1732140739990,-500.0,0.00056438,120]
[342784462,1732140739999,-1661.17,0.00056438,120]
[342784463,1732140740009,-500.0,0.00056438,120]
[342784464,1732140740018,-157.497523,0.00056438,120]
[342784465,1732140740029,-157.497523,0.00056438,120]
[342784466,1732140740039,-157.497523,0.00056438,120]
[342784467,1732140740049,-157.497523,0.00056438,120]
[342784468,1732140740060,-800.14,0.00056438,120]
[342784469,1732140740070,-157.497523,0.00056438,120]
[342784470,1732140740080,-157.497523,0.00056438,120]
[342784471,1732140740090,-500.0,0.00056438,120]
[342784472,1732140740101,-500.0,0.00056438,120]
[342784473,1732140740111,-1090.19,0.00056438,120]
[342784474,1732140740122,-157.497523,0.00056438,120]
[342784475,1732140740132,-157.497523,0.00056438,120]
[342784476,1732140740144,-157.497523,0.00056438,120]
[342784477,1732140740156,-157.497523,0.00056438,120]
[342784478,1732140740166,-1054.3,0.00056438,120]
[342784479,1732140740176,-157.497523,0.00056438,120]
[342784480,1732140740186,-500.0,0.00056438,120]
[342784481,1732140740197,-1209.25,0.00056438,120]
[342784482,1732140740207,-157.49753,0.00056438,120]
[342784483,1732140740216,-500.0,0.00056438,120]
[342784484,1732140740228,-1127.18,0.00056438,120]
[342784485,1732140740239,-500.0,0.00056438,120]
[342784486,1732140740248,-500.0,0.00056438,120]
[342784487,1732140740258,-500.0,0.00056438,120]
[342784488,1732140740267,-500.0,0.00056438,120]
[342784489,1732140740276,-1267.34,0.00056438,120]
[342784490,1732140740285,-500.0,0.00056438,120]
[342784491,1732140740294,-2432.38,0.00056438,7]
[342784492,1732140740304,-242.42652087,0.00056438,120]
[342784493,1732140740313,-501.65323239,0.00056438,120]
[342784494,1732140740322,-511.42610635,0.00056438,120]
[342784495,1732140740331,-1560.72,0.00056438,120]
[342784496,1732140740340,-500.0,0.00056438,120]
[342784497,1732140740350,-208.735244,0.00056438,120]
[342784498,1732140740359,-208.735244,0.00056438,120]
[342784499,1732140740368,-208.735244,0.00056438,120]
[342784500,1732140740377,-655.09,0.00056438,120]
[342784501,1732140740386,-1047.78,0.00056438,120]
[342784502,1732140740396,-500.0,0.00056438,120]
[342784503,1732140740405,-208.735244,0.00056438,120]
[342784504,1732140740415,-500.0,0.00056438,120]
[342784505,1732140740424,-208.735244,0.00056438,120]
[342784506,1732140740436,-208.735244,0.00056438,120]
[342784507,1732140740540,-500.0,0.00056438,120]
[342784508,1732140740550,-349.533809,0.00056438,120]
[342784509,1732140740559,-349.533809,0.00056438,120]
[342784510,1732140740568,-208.735244,0.00056438,120]
[342784511,1732140740577,-349.533809,0.00056438,120]
[342784512,1732140740587,-208.735244,0.00056438,120]
[342784513,1732140740596,-1376.36,0.00056438,120]
[342784514,1732140740605,-349.533809,0.00056438,120]
[342784515,1732140740614,-208.735244,0.00056438,120]
[342784516,1732140740624,-349.533809,0.00056438,120]
[342784517,1732140740633,-208.735244,0.00056438,120]
[342784518,1732140740642,-349.533809,0.00056438,120]
[342784519,1732140740652,-208.735244,0.00056438,120]
[342784520,1732140740662,-208.735252,0.00056438,120]
[342784521,1732140740672,-758.47,0.00056438,120]
[342784522,1732140740682,-349.533809,0.00056438,120]
[342784523,1732140740691,-1218.68,0.00056438,120]
[342784524,1732140740701,-349.533809,0.00056438,120]
[342784525,1732140740710,-500.0,0.00056438,120]
[342784526,1732140740719,-1031.21,0.00056438,120]
[342784527,1732140740728,-349.533809,0.00056438,120]
[342784528,1732140740737,-349.533809,0.00056438,120]
[342784529,1732140740746,-349.533809,0.00056438,120]
[342784530,1732140740756,-746.97,0.00056438,120]
[342784531,1732140740765,-349.533813,0.00056438,120]
[342784532,1732140740774,-500.0,0.00056438,120]
[342784533,1732140740783,-501.01884982,0.00056438,120]
[342784534,1732140740792,-1956.13,0.00056438,120]
[342784535,1732140740801,-859.85,0.00056438,120]
[342784536,1732140740810,-1530.02,0.00056438,120]
[342784537,1732140740819,-626.84,0.00056438,120]
[342784538,1732140740828,-925.63,0.00056438,120]
[342784539,1732140740837,-1089.2,0.00056438,120]
[342784540,1732140740845,-500.0,0.00056438,120]
[342784541,1732140740855,-746.22,0.00056438,120]
[342784542,1732140740864,-1753.04,0.00056438,120]
[342784543,1732140740874,-1615.28,0.00056438,120]
[342784544,1732140740883,-610.78521133,0.00056438,120]
[342784545,1732140740893,-750.0,0.00056438,120]
[342784546,1732140740903,-502.35205531,0.00056438,120]
[342784547,1732140740913,-2808.16,0.00056438,120]
[342784548,1732140740922,-500.0,0.00056438,120]
[342784549,1732140740933,-628.55,0.00056438,120]
[342784550,1732140740941,-2720.22,0.00056438,120]
[342784551,1732140740950,-621.28021305,0.00056438,2]
[342784552,1732140740959,-1040.43,0.00056438,120]
[342784553,1732140740969,-679.38,0.00056438,120]
[342784554,1732140740978,-500.0,0.00056438,120]
[342784555,1732140740987,-1140.69,0.00056438,120]
[342784556,1732140740996,-1233.54,0.00056438,120]
[342784557,1732140741005,-579.85,0.00056438,120]
[342784558,1732140741014,-560.33,0.00056438,120]
[342784559,1732140741023,-1241.7,0.00056438,120]
[342784560,1732140741032,-673.6,0.00056438,120]
[342784561,1732140741042,-521.30578521,0.00056438,120]
[342784562,1732140741052,-1595.79,0.00056438,120]
[342784563,1732140741062,-500.0,0.00056438,120]
[342784564,1732140741071,-690.2,0.00056438,120]
[342784565,1732140741080,-500.0,0.00056438,120]
[342784566,1732140741091,-614.35,0.00056438,120]
[342784567,1732140741100,-500.0,0.00056438,120]
[342784568,1732140741108,-500.0,0.00056438,120]
[342784569,1732140741118,-1420.27,0.00056438,120]
[342784570,1732140741127,-500.0,0.00056438,120]
[342784571,1732140741136,-151.0,0.00056438,120]
[342784572,1732140741147,-151.0,0.00056438,120]
[342784573,1732140741157,-466.52152884,0.00056438,120]
[342784574,1732140741166,-151.0,0.00056438,120]
[342784575,1732140741175,-151.0,0.00056438,120]
[342784576,1732140741186,-500.0,0.00056438,120]
[342784577,1732140741195,-500.0,0.00056438,120]
[342784578,1732140741204,-500.0,0.00056438,120]
[342784579,1732140741214,-500.0,0.00056438,120]
[342784580,1732140741227,-500.0,0.00056438,120]
[342784581,1732140741237,-500.0,0.00056438,120]
[342784582,1732140741247,-1747.91,0.00056438,120]
[342784583,1732140741256,-500.0,0.00056438,120]
[342784584,1732140741266,-326.10477,0.00056438,120]
[342784585,1732140741275,-326.10477,0.00056438,120]
[342784586,1732140741285,-500.0,0.00056438,120]
[342784587,1732140741294,-326.10477,0.00056438,120]
[342784588,1732140741303,-500.0,0.00056438,120]
[342784589,1732140741313,-326.10477,0.00056438,120]
[342784590,1732140741321,-1026.85,0.00056438,120]
[342784591,1732140741330,-326.10477,0.00056438,120]
[342784592,1732140741339,-326.10477,0.00056438,120]
[342784593,1732140741348,-500.0,0.00056438,120]
[342784594,1732140741357,-326.10477,0.00056438,120]
[342784595,1732140741366,-326.10477,0.00056438,120]
[342784596,1732140741375,-500.0,0.00056438,120]
[342784597,1732140741383,-326.10477,0.00056438,120]
[342784598,1732140741393,-326.10477,0.00056438,120]
[342784599,1732140741402,-500.0,0.00056438,120]
[342784600,1732140741412,-326.10477,0.00056438,120]
[342784601,1732140741421,-500.0,0.00056438,120]
[342784602,1732140741431,-500.0,0.00056438,120]
[342784603,1732140741440,-813.38,0.00056438,120]
[342784604,1732140741449,-326.104776,0.00056438,120]
[342784605,1732140741458,-1208.59,0.00056438,120]
[342784606,1732140741468,-1929.2,0.00056438,120]
[342784607,1732140741478,-509.94,0.00056438,120]
[342784608,1732140741487,-500.0,0.00056438,120]
[342784609,1732140741496,-547.23,0.00056438,120]
[342784610,1732140741506,-2243.95,0.00056438,120]
[342784611,1732140741516,-983.72,0.00056438,120]
[342784612,1732140741525,-1133.87,0.00056438,120]
[342784613,1732140741534,-500.0,0.00056438,120]
[342784614,1732140741544,-500.0,0.00056438,120]
[342784615,1732140741553,-500.0,0.00056438,120]
[342784616,1732140741561,-500.0,0.00056438,120]
[342784617,1732140741571,-500.0,0.00056438,120]
[342784618,1732140741580,-500.0,0.00056438,120]
[342784619,1732140741589,-500.0,0.00056438,120]
[342784620,1732140741598,-500.0,0.00056438,120]
[342784621,1732140741608,-571.62569834,0.00056438,120]
[342784622,1732140741618,-500.0,0.00056438,120]
[342784623,1732140741627,-500.0,0.00056438,120]
[342784624,1732140741636,-837.29,0.00056438,120]
[342784625,1732140741646,-601.65,0.00056438,120]
[342784626,1732140741655,-151.0,0.00056438,120]
[342784627,1732140741664,-151.0,0.00056438,120]
[342784628,1732140741674,-151.0,0.00056438,120]
[342784629,1732140741685,-151.0,0.00056438,120]
[342784630,1732140741694,-151.0,0.00056438,120]
[342784631,1732140741703,-151.0,0.00056438,120]
[342784632,1732140741714,-500.0,0.00056438,120]
[342784633,1732140741725,-218.364149,0.00056438,120]
[342784634,1732140741734,-151.0,0.00056438,120]
[342784635,1732140741743,-500.0,0.00056438,120]
[342784636,1732140741753,-500.0,0.00056438,120]
[342784637,1732140741762,-151.0,0.00056438,120]
[342784638,1732140741773,-500.0,0.00056438,120]
[342784639,1732140741783,-151.0,0.00056438,120]
[342784640,1732140741792,-1244.02,0.00056438,120]
[342784641,1732140741802,-500.0,0.00056438,120]
[342784642,1732140741812,-500.0,0.00056438,120]
[342784643,1732140741822,-581.48,0.00056438,120]
[342784644,1732140741831,-504.67610671,0.00056438,120]
[342784645,1732140741841,-500.0,0.00056438,120]
[342784646,1732140741851,-912.77,0.00056438,120]
[342784647,1732140741860,-1640.54,0.00056438,120]
[342784648,1732140741869,-822.59,0.00056438,120]
[342784649,1732140741879,-500.0,0.00056438,120]
[342784650,1732140741888,-406.98793197,0.00056438,120]
[342784651,1732140741899,-957.41,0.00056438,120]
[342784652,1732140741908,-3305.34,0.00056438,120]
[342784653,1732140741918,-500.0,0.00056438,120]
[342784654,1732140741929,-546.92,0.00056438,120]
[342784655,1732140741938,-500.0,0.00056438,120]
[342784656,1732140741949,-500.0,0.00056438,120]
[342784657,1732140741959,-500.0,0.00056438,120]
[342784658,1732140741968,-1590.28,0.00056438,120]
[342784659,1732140741978,-500.0,0.00056438,120]
[342784660,1732140741987,-500.0,0.00056438,120]
[342784661,1732140741996,-4503.54,0.00056438,120]
[342784662,1732140742006,-2459.56,0.00056438,120]
[342784663,1732140742015,-500.0,0.00056438,120]
[342784664,1732140742024,-5054.97,0.00056438,120]
[342784665,1732140742034,-500.0,0.00056438,120]
[342784666,1732140742043,-500.0,0.00056438,120]
[342784667,1732140742052,-487.67615027,0.00056438,120]
[342784668,1732140742062,-1237.62,0.00056438,120]
[342784669,1732140742071,-1805.81,0.00056438,120]
[342784670,1732140742081,-1705.69,0.00056438,120]
[342784671,1732140742091,-730.02,0.00056438,120]
[342784672,1732140742107,-500.0,0.00056438,120]
[342784673,1732140742124,-500.0,0.00056438,120]
[342784674,1732140742134,-151.0,0.00056438,120]
[342784675,1732140742144,-151.0,0.00056438,120]
[342784676,1732140742158,-556.28,0.00056438,120]
[342784677,1732140742168,-151.0,0.00056438,120]
[342784678,1732140742179,-1293.03,0.00056438,120]
[342784679,1732140742189,-151.0,0.00056438,120]
[342784680,1732140742199,-735.83,0.00056438,120]
[342784681,1732140742209,-500.0,0.00056438,120]
[342784682,1732140742218,-875.45,0.00056438,120]
[342784683,1732140742231,-500.0,0.00056438,120]
[342784684,1732140742240,-500.0,0.00056438,120]
[342784685,1732140742250,-500.0,0.00056438,120]
[342784686,1732140742260,-2355.16,0.00056438,120]
[342784687,1732140742270,-529.9,0.00056438,120]
[342784688,1732140742281,-1065.14,0.00056438,120]
[342784689,1732140742291,-1626.59,0.00056438,120]
[342784690,1732140742301,-500.0,0.00056438,120]
[342784691,1732140742310,-449.60032201,0.00056438,120]
[342784692,1732140742320,-500.0,0.00056438,120]
[342784693,1732140742329,-1000.0,0.00056438,30]
[342784694,1732140742338,-899.71,0.00056438,120]
[342784695,1732140742348,-1031.07,0.00056438,120]
[342784696,1732140742357,-500.0,0.00056438,120]
[342784697,1732140742366,-2139.66,0.00056438,120]
[342784698,1732140742376,-500.0,0.00056438,120]
[342784699,1732140742385,-500.0,0.00056438,120]
[342784700,1732140742395,-1746.7,0.00056438,120]
[342784701,1732140742405,-500.0,0.00056438,120]
[342784702,1732140742415,-525.57,0.00056438,120]
[342784703,1732140742424,-500.0,0.00056438,120]
[342784704,1732140742435,-1007.82,0.00056438,120]
[342784705,1732140742445,-525.94,0.00056438,120]
[342784706,1732140742455,-500.0,0.00056438,120]
[342784707,1732140742464,-500.0,0.00056438,120]
[342784708,1732140742473,-500.0,0.00056438,120]
[342784709,1732140742483,-800.11,0.00056438,120]
[342784710,1732140742493,-2450.69,0.00056438,120]
[342784711,1732140742503,-3332.16,0.00056438,120]
[342784712,1732140742513,-500.0,0.00056438,120]
[342784713,1732140742523,-500.0,0.00056438,120]
[342784714,1732140742532,-1123.27,0.00056438,120]
[342784715,1732140742542,-1393.96,0.00056438,120]
[342784716,1732140742551,-967.57,0.00056438,120]
[342784717,1732140742561,-500.0,0.00056438,120]
[342784718,1732140742571,-500.0,0.00056438,120]
[342784719,1732140742580,-1357.65,0.00056438,120]
[342784720,1732140742591,-500.0,0.00056438,120]
[342784721,1732140742601,-1642.87,0.00056438,120]
[342784722,1732140742610,-500.0,0.00056438,120]
[342784723,1732140742620,-1717.17,0.00056438,120]
[342784724,1732140742630,-1588.79,0.00056438,90]
[342784725,1732140742640,-500.0,0.00056438,120]
[342784726,1732140742650,-1853.26,0.00056438,120]
[342784727,1732140742660,-500.0,0.00056438,120]
[342784728,1732140742670,-500.0,0.00056438,120]
[342784729,1732140742679,-500.0,0.00056438,120]
[342784730,1732140742689,-253.4772765,0.00056438,120]
[342784731,1732140742698,-500.0,0.00056438,120]
[342784732,1732140742708,-500.0,0.00056438,120]
[342784733,1732140742718,-500.0,0.00056438,120]
[342784734,1732140742727,-700.0,0.00056438,120]
[342784735,1732140742736,-500.0,0.00056438,120]
[342784736,1732140742745,-2546.22,0.00056438,120]
[342784737,1732140742755,-500.0,0.00056438,120]
[342784738,1732140742764,-500.0,0.00056438,120]
[342784739,1732140742774,-250.0,0.00056438,120]
[342784740,1732140742784,-2834.37,0.00056438,120]
[342784741,1732140742793,-531.14847935,0.00056438,120]
[342784742,1732140742803,-500.0,0.00056438,120]
[342784743,1732140742813,-500.0,0.00056438,120]
[342784744,1732140742826,-500.0,0.00056438,120]
[342784745,1732140742841,-305.56006407,0.00056438,120]
[342784746,1732140742851,-1334.03,0.00056438,120]
[342784747,1732140742861,-500.0,0.00056438,120]
[342784748,1732140742872,-500.0,0.00056438,120]
[342784749,1732140742882,-2885.23,0.00056438,120]
[342784750,1732140742891,-4453.81,0.00056438,120]
[342784751,1732140742901,-500.0,0.00056438,120]
[342784752,1732140742912,-500.0,0.00056438,120]
[342784753,1732140742922,-2241.05,0.00056438,120]
[342784754,1732140742934,-500.0,0.00056438,120]
[342784755,1732140742945,-2217.98,0.00056438,120]
[342784756,1732140742955,-500.0,0.00056438,120]
[342784757,1732140742965,-500.0,0.00056438,120]
[342784758,1732140742975,-500.0,0.00056438,120]
[342784759,1732140742985,-151.0,0.00056438,120]
[342784760,1732140742995,-151.0,0.00056438,120]
[342784761,1732140743006,-151.0,0.00056438,120]
[342784762,1732140743016,-500.0,0.00056438,120]
[342784763,1732140743028,-151.0,0.00056438,120]
[342784764,1732140743039,-151.0,0.00056438,120]
[342784765,1732140743050,-500.0,0.00056438,120]
[342784766,1732140743059,-500.0,0.00056438,120]
[342784767,1732140743069,-1402.45,0.00056438,60]
[342784768,1732140743080,-800.61,0.00056438,120]
[342784769,1732140743091,-151.0,0.00056438,120]
[342784770,1732140743102,-500.0,0.00056438,120]
[342784771,1732140743113,-391.26835574,0.00056438,120]
[342784772,1732140743123,-708.966244,0.00056438,120]
[342784773,1732140743134,-932.27,0.00056438,120]
[342784774,1732140743145,-1004.07,0.00056438,120]
[342784775,1732140743158,-708.966244,0.00056438,120]
[342784776,1732140743169,-708.966244,0.00056438,120]
[342784777,1732140743179,-708.966244,0.00056438,120]
[342784778,1732140743191,-708.966244,0.00056438,120]
[342784779,1732140743201,-500.0,0.00056438,120]
[342784780,1732140743211,-2000.63,0.00056438,120]
[342784781,1732140743223,-708.966244,0.00056438,120]
[342784782,1732140743234,-703.55,0.00056438,120]
[342784783,1732140743244,-2241.76,0.00056438,120]
[342784784,1732140743254,-1132.68,0.00056438,120]
[342784785,1732140743264,-708.966244,0.00056438,120]
[342784786,1732140743274,-708.966244,0.00056438,120]
[342784787,1732140743284,-596.11,0.00056438,120]
[342784788,1732140743294,-708.966244,0.00056438,120]
[342784789,1732140743303,-708.966244,0.00056438,120]
[342784790,1732140743314,-794.52,0.00056438,120]
[342784791,1732140743325,-708.966244,0.00056438,120]
[342784792,1732140743335,-833.99,0.00056438,120]
[342784793,1732140743344,-2777.12,0.00056438,120]
[342784794,1732140743354,-708.966239,0.00056438,120]
[342784795,1732140743364,-1309.21,0.00056438,120]
[342784796,1732140743375,-1558.24,0.00056438,120]
[342784797,1732140743385,-500.0,0.00056438,120]
[342784798,1732140743396,-500.0,0.00056438,120]
[342784799,1732140743406,-500.0,0.00056438,120]
[342784800,1732140743416,-500.0,0.00056438,120]
[342784801,1732140743426,-500.0,0.00056438,120]
[342784802,1732140743439,-500.0,0.00056438,120]
[342784803,1732140743449,-500.08,0.00056438,120]
[342784804,1732140743459,-500.0,0.00056438,120]
[342784805,1732140743469,-500.0,0.00056438,60]
[342784806,1732140743479,-500.0,0.00056438,120]
[342784807,1732140743488,-2539.87,0.00056438,120]
[342784808,1732140743498,-500.0,0.00056438,120]
[342784809,1732140743508,-500.0,0.00056438,120]
[342784810,1732140743518,-831.36,0.00056438,120]
[342784811,1732140743528,-1229.75,0.00056438,120]
[342784812,1732140743538,-500.0,0.00056438,120]
[342784813,1732140743548,-500.0,0.00056438,120]
[342784814,1732140743558,-500.0,0.00056438,120]
[342784815,1732140743568,-1743.89,0.00056438,120]
[342784816,1732140743578,-500.0,0.00056438,120]
[342784817,1732140743588,-500.0,0.00056438,120]
[342784818,1732140743599,-1365.28,0.00056438,120]
[342784819,1732140743610,-296.6115742,0.00056438,120]
[342784820,1732140743621,-508.14133113,0.00056438,120]
[342784821,1732140743630,-1290.22,0.00056438,120]
[342784822,1732140743640,-507.82,0.00056438,120]
[342784823,1732140743651,-500.0,0.00056438,120]
[342784824,1732140743662,-151.0,0.00056438,120]
[342784825,1732140743672,-500.0,0.00056438,120]
[342784826,1732140743682,-3045.72,0.00056438,120]
[342784827,1732140743692,-151.0,0.00056438,120]
[342784828,1732140743702,-151.0,0.00056438,120]
[342784829,1732140743712,-151.0,0.00056438,120]
[342784830,1732140743722,-500.0,0.00056438,120]
[342784831,1732140743731,-151.0,0.00056438,120]
[342784832,1732140743743,-151.0,0.00056438,120]
[342784833,1732140743753,-916.6,0.00056438,120]
[342784834,1732140743764,-323.433089,0.00056438,120]
[342784835,1732140743773,-500.0,0.00056438,120]
[342784836,1732140743783,-323.433089,0.00056438,120]
[342784837,1732140743793,-500.0,0.00056438,120]
[342784838,1732140743804,-610.75,0.00056438,120]
[342784839,1732140743813,-323.433089,0.00056438,120]
[342784840,1732140743824,-323.433089,0.00056438,120]
[342784841,1732140743834,-500.0,0.00056438,120]
[342784842,1732140743845,-323.433089,0.00056438,120]
[342784843,1732140743854,-323.433089,0.00056438,120]
[342784844,1732140743864,-1278.95,0.00056438,120]
[342784845,1732140743874,-500.0,0.00056438,120]
[342784846,1732140743883,-323.433089,0.00056438,120]
[342784847,1732140743893,-502.86,0.00056438,120]
[342784848,1732140743904,-323.433089,0.00056438,120]
[342784849,1732140743914,-323.433089,0.00056438,120]
[342784850,1732140743926,-504.52,0.00056438,120]
[342784851,1732140743937,-323.433089,0.00056438,120]
[342784852,1732140743947,-500.0,0.00056438,120]
[342784853,1732140743957,-323.433089,0.00056438,120]
[342784854,1732140743968,-500.0,0.00056438,120]
[342784855,1732140744188,-323.433081,0.00056438,120]
[342784856,1732140744207,-500.0,0.00056438,120]
[342784857,1732140744216,-702.18,0.00056438,120]
[342784858,1732140744226,-500.0,0.00056438,120]
[342784859,1732140744236,-151.0,0.00056438,120]
[342784860,1732140744245,-3583.6,0.00056438,120]
[342784861,1732140744254,-151.0,0.00056438,120]
[342784862,1732140744263,-151.0,0.00056438,120]
[342784863,1732140744273,-151.0,0.00056438,120]
[342784864,1732140744283,-151.0,0.00056438,120]
[342784865,1732140744292,-151.0,0.00056438,120]
[342784866,1732140744302,-1685.95,0.00056438,120]
[342784867,1732140744313,-500.0,0.00056438,120]
[342784868,1732140744322,-500.0,0.00056438,120]
[342784869,1732140744331,-500.0,0.00056438,120]
[342784870,1732140744340,-5689.68,0.00056438,120]
[342784871,1732140744350,-1343.23,0.00056438,120]
[342784872,1732140744359,-151.0,0.00056438,120]
[342784873,1732140744369,-500.0,0.00056438,120]
[342784874,1732140744379,-574.1788749,0.00056438,120]
[342784875,1732140744388,-151.0,0.00056438,120]
[342784876,1732140744397,-500.0,0.00056438,120]
[342784877,1732140744409,-151.0,0.00056438,120]
[342784878,1732140744418,-151.0,0.00056438,120]
[342784879,1732140744427,-241.298967,0.00056438,120]
[342784880,1732140744437,-553.27,0.00056438,120]
[342784881,1732140744447,-500.0,0.00056438,120]
[342784882,1732140744456,-500.0,0.00056438,120]
[342784883,1732140744465,-500.0,0.00056438,120]
[342784884,1732140744474,-500.0,0.00056438,120]
[342784885,1732140744485,-500.0,0.00056438,120]
[342784886,1732140744496,-1250.26,0.00056438,120]
[342784887,1732140744506,-982.33,0.00056438,120]
[342784888,1732140744516,-667.62,0.00056438,120]
[342784889,1732140744526,-500.0,0.00056438,120]
[342784890,1732140744535,-500.0,0.00056438,120]
[342784891,1732140744544,-500.0,0.00056438,120]
[342784892,1732140744554,-609.95,0.00056438,120]
[342784893,1732140744563,-500.0,0.00056438,120]
[342784894,1732140744573,-500.0,0.00056438,120]
[342784895,1732140744582,-500.0,0.00056438,120]
[342784896,1732140744592,-500.0,0.00056438,120]
[342784897,1732140744601,-808.05,0.00056438,120]
[342784898,1732140744611,-522.08,0.00056438,120]
[342784899,1732140744620,-1111.01,0.00056438,120]
[342784900,1732140744630,-671.78,0.00056438,120]
[342784901,1732140744639,-500.0,0.00056438,120]
[342784902,1732140744649,-1704.12,0.00056438,120]
[342784903,1732140744659,-500.0,0.00056438,120]
[342784904,1732140744668,-2102.13,0.00056438,120]
[342784905,1732140744678,-500.0,0.00056438,120]
[342784906,1732140744688,-500.0,0.00056438,120]
[342784907,1732140744697,-675.74,0.00056438,120]
[342784908,1732140744707,-628.14013,0.00056438,120]
[342784909,1732140744715,-628.14013,0.00056438,120]
[342784910,1732140744725,-161.47312386,0.00056438,120]
[342784911,1732140744734,-628.14013,0.00056438,120]
[342784912,1732140744743,-500.0,0.00056438,120]
[342784913,1732140744753,-907.83,0.00056438,120]
[342784914,1732140744762,-628.14013,0.00056438,120]
[342784915,1732140744771,-628.14013,0.00056438,120]